[Event "MČR v rapid šachu družstev 2019"]
[Site "Teplice, Czech Republic"]
[Date "2019.09.15"]
[Round "8.19"]
[White "Pribyl, Josef"]
[Black "Richtr, Zdenek"]
[Result "1-0"]
[TimeControl "15 min. + 5s"]
[WhiteElo "2285"]
[BlackElo "2114"]

1. c4 {[%clk 00:15:07]} {[%emt 00:08:38]} c5 {[%clk 00:15:08]} {[%emt
00:00:03]} 2. Nf3 {[%clk 00:15:11]} {[%emt 00:00:02]} Nf6 {[%clk 00:15:12]}
{[%emt 00:00:01]} 3. Nc3 Nc6 4. d4 {[%clk 00:15:19]} cxd4 {[%clk 00:15:20]}
{[%emt 00:00:01]} 5. Nxd4 {[%clk 00:15:23]} {[%emt 00:00:01]} g6 {[%clk
00:15:24]} {[%emt 00:00:02]} 6. g3 {[%clk 00:15:25]} {[%emt 00:00:02]} Bg7
{[%clk 00:15:28]} {[%emt 00:00:01]} 7. Bg2 {[%clk 00:15:30]} O-O {[%clk
00:15:30]} {[%emt 00:00:02]} 8. O-O {[%clk 00:15:34]} Qa5 {[%clk 00:15:31]}
{[%emt 00:00:06]} 9. h3 {[%clk 00:15:28]} {[%emt 00:00:10]} Nxd4 {[%clk
00:15:28]} {[%emt 00:00:09]} 10. Qxd4 {[%clk 00:15:32]} {[%emt 00:00:01]} d6
{[%clk 00:15:29]} {[%emt 00:00:04]} 11. Bd2 {[%clk 00:15:25]} {[%emt 00:00:11]}
Qh5 {[%clk 00:15:28]} {[%emt 00:00:06]} 12. Qh4 {[%clk 00:14:36]} {[%emt
00:00:53]} Qxh4 {[%clk 00:15:22]} {[%emt 00:00:12]} 13. gxh4 {[%clk 00:14:40]}
Be6 {[%clk 00:15:15]} {[%emt 00:00:12]} 14. b3 {[%clk 00:14:42]} {[%emt
00:00:04]} Rab8 {[%clk 00:15:16]} {[%emt 00:00:04]} 15. a4 {[%clk 00:14:40]}
{[%emt 00:00:06]} a6 {[%clk 00:15:01]} {[%emt 00:00:20]} 16. Rac1 {[%clk
00:14:31]} {[%emt 00:00:14]} Rfc8 {[%clk 00:14:35]} {[%emt 00:00:32]} 17. Be3
{[%clk 00:14:24]} {[%emt 00:00:11]} b6 {[%clk 00:13:34]} {[%emt 00:01:07]} 18.
Rfd1 {[%clk 00:14:15]} {[%emt 00:00:13]} h5 {[%clk 00:13:36]} {[%emt 00:00:04]}
19. Nd5 {[%clk 00:14:03]} {[%emt 00:00:16]} Nxd5 {[%clk 00:13:32]} {[%emt
00:00:09]} 20. cxd5 {[%clk 00:14:07]} Bd7 {[%clk 00:13:36]} {[%emt 00:00:01]}
21. Rxc8+ {[%clk 00:14:10]} {[%emt 00:00:03]} Bxc8 {[%clk 00:13:29]} {[%emt
00:00:12]} 22. Rc1 {[%clk 00:14:08]} {[%emt 00:00:06]} b5 {[%clk 00:13:30]}
{[%emt 00:00:05]} 23. axb5 {[%clk 00:13:57]} {[%emt 00:00:16]} axb5 {[%clk
00:13:32]} {[%emt 00:00:03]} 24. Bg5 {[%clk 00:13:47]} {[%emt 00:00:15]} Kf8
{[%clk 00:13:16]} {[%emt 00:00:21]} 25. Rc7 {[%clk 00:13:49]} {[%emt 00:00:02]}
Bf6 {[%clk 00:13:20]} {[%emt 00:00:01]} 26. e4 {[%clk 00:13:08]} {[%emt
00:00:46]} Bxg5 {[%clk 00:13:05]} {[%emt 00:00:21]} 27. hxg5 {[%clk 00:13:12]}
Ke8 {[%clk 00:13:08]} {[%emt 00:00:03]} 28. f4 {[%clk 00:12:53]} {[%emt
00:00:23]} Bd7 {[%clk 00:13:08]} {[%emt 00:00:05]} 29. Bf1 {[%clk 00:12:03]}
{[%emt 00:00:54]} Kd8 {[%clk 00:13:11]} {[%emt 00:00:03]} 30. Ra7 {[%clk
00:11:55]} {[%emt 00:00:13]} Kc8 {[%clk 00:13:00]} {[%emt 00:00:16]} 31. b4
{[%clk 00:11:38]} {[%emt 00:00:22]} Rb7 {[%clk 00:12:51]} {[%emt 00:00:15]} 32.
Rxb7 {[%clk 00:11:40]} {[%emt 00:00:01]} Kxb7 {[%clk 00:12:55]} {[%emt
00:00:02]} 33. Kf2 {[%clk 00:11:33]} {[%emt 00:00:12]} e6 {[%clk 00:12:54]}
{[%emt 00:00:07]} 34. Ke3 {[%clk 00:11:23]} {[%emt 00:00:14]} exd5 {[%clk
00:12:54]} {[%emt 00:00:05]} 35. exd5 {[%clk 00:11:27]} {[%emt 00:00:02]} Bf5
{[%clk 00:12:51]} {[%emt 00:00:07]} 36. Bxb5 {[%clk 00:10:44]} {[%emt
00:00:49]} Bxh3 {[%clk 00:12:55]} {[%emt 00:00:01]} 37. Be8 {[%clk 00:10:47]}
{[%emt 00:00:01]} Bf5 {[%clk 00:12:34]} {[%emt 00:00:26]} 38. Bxf7 {[%clk
00:10:39]} {[%emt 00:00:13]} Kb6 {[%clk 00:12:34]} {[%emt 00:00:06]} 39. Be6
{[%clk 00:10:38]} {[%emt 00:00:05]} Bxe6 {[%clk 00:01:52]} {[%emt 00:10:47]} 40.
dxe6 {[%emt 00:00:02]} Kc7 41. f5 {[%clk 00:10:36]} {[%emt 00:00:09]} h4 {[%clk
00:01:57]} {[%emt 00:00:05]} 42. fxg6 {[%clk 00:10:32]} {[%emt 00:00:09]} h3
{[%clk 00:02:01]} {[%emt 00:00:01]} 43. Kf2 {[%clk 00:10:28]} {[%emt 00:00:09]}
d5 {[%clk 00:02:05]} 44. g7 {[%clk 00:10:30]} {[%emt 00:00:04]} 1-0

[Event "MČR v rapid šachu družstev 2019"]
[Site "Teplice, Czech Republic"]
[Date "2019.09.15"]
[Round "8.20"]
[White "Hosnedl, Matyas"]
[Black "Benes, Petr"]
[Result "0-1"]
[TimeControl "15 min. + 5s"]
[WhiteElo "1858"]
[BlackElo "2147"]

1. e4 {[%clk 00:15:08]} {[%emt 00:00:02]} Nc6 {[%clk 00:15:01]} {[%emt
00:00:09]} 2. d4 {[%clk 00:15:00]} {[%emt 00:00:13]} e5 {[%clk 00:15:00]}
{[%emt 00:00:07]} 3. Nf3 {[%clk 00:14:38]} {[%emt 00:00:26]} exd4 {[%clk
00:14:52]} {[%emt 00:00:14]} 4. Bc4 {[%clk 00:14:22]} {[%emt 00:00:20]} Bb4+
{[%clk 00:14:47]} {[%emt 00:00:10]} 5. c3 {[%clk 00:14:21]} {[%emt 00:00:07]}
dxc3 {[%clk 00:14:49]} {[%emt 00:00:03]} 6. bxc3 {[%clk 00:13:59]} {[%emt
00:00:27]} Ba5 {[%clk 00:14:45]} {[%emt 00:00:09]} 7. O-O {[%clk 00:13:30]}
{[%emt 00:00:34]} d6 {[%clk 00:14:14]} {[%emt 00:00:36]} 8. e5 {[%clk
00:12:59]} {[%emt 00:00:36]} dxe5 {[%clk 00:13:38]} {[%emt 00:00:41]} 9. Bxf7+
{[%clk 00:11:29]} {[%emt 00:01:36]} Kxf7 {[%clk 00:13:27]} {[%emt 00:00:15]} 10.
Nxe5+ {[%clk 00:11:32]} {[%emt 00:00:01]} Ke8 {[%clk 00:12:41]} {[%emt
00:00:51]} 11. Qh5+ {[%clk 00:11:26]} {[%emt 00:00:12]} g6 {[%clk 00:12:39]}
{[%emt 00:00:07]} 12. Nxg6 {[%clk 00:11:26]} {[%emt 00:00:05]} Nf6 {[%clk
00:12:38]} {[%emt 00:00:06]} 13. Qe2+ {[%clk 00:11:24]} {[%emt 00:00:06]} Kf7
{[%clk 00:12:07]} {[%emt 00:00:36]} 14. Nxh8+ {[%clk 00:11:21]} {[%emt
00:00:08]} Qxh8 {[%clk 00:11:26]} {[%emt 00:00:46]} 15. Re1 {[%clk 00:11:21]}
{[%emt 00:00:05]} Qe8 {[%clk 00:08:44]} {[%emt 00:02:48]} 16. Qc4+ {[%clk
00:10:30]} {[%emt 00:00:55]} Be6 {[%clk 00:08:47]} {[%emt 00:00:02]} 17. Qh4
{[%clk 00:10:32]} {[%emt 00:00:03]} Qg8 {[%clk 00:03:20]} {[%emt 00:05:32]} 18.
Bg5 {[%clk 00:08:56]} {[%emt 00:01:41]} Bd5 {[%clk 00:03:23]} {[%emt 00:00:03]}
19. Qf4 {[%clk 00:07:36]} {[%emt 00:01:24]} Qg6 {[%clk 00:03:13]} {[%emt
00:00:16]} 20. Rd1 {[%clk 00:07:02]} {[%emt 00:00:38]} Be6 {[%clk 00:03:02]}
{[%emt 00:00:16]} 21. Nd2 {[%clk 00:06:03]} {[%emt 00:01:04]} Qf5 {[%clk
00:02:40]} {[%emt 00:00:27]} 22. Qh4 {[%clk 00:05:29]} {[%emt 00:00:39]} Rg8
{[%clk 00:02:39]} {[%emt 00:00:06]} 23. Bxf6 {[%clk 00:05:15]} {[%emt
00:00:19]} Qxf6 {[%clk 00:02:35]} {[%emt 00:00:10]} 24. Qxh7+ {[%clk 00:05:17]}
{[%emt 00:00:03]} Qg7 {[%clk 00:02:27]} {[%emt 00:00:13]} 25. Qh5+ {[%clk
00:05:05]} {[%emt 00:00:16]} Qg6 {[%clk 00:02:31]} {[%emt 00:00:01]} 26. Qxg6+
{[%clk 00:04:17]} {[%emt 00:00:54]} Rxg6 {[%clk 00:02:33]} {[%emt 00:00:02]} 27.
Ne4 {[%clk 00:04:17]} {[%emt 00:00:05]} Bh3 {[%clk 00:02:12]} {[%emt 00:00:26]}
28. Ng3 {[%clk 00:04:14]} {[%emt 00:00:08]} Bg4 {[%clk 00:02:01]} {[%emt
00:00:16]} 29. f3 {[%emt 00:00:32]} Bb6+ 30. Kf1 {[%clk 00:03:41]} {[%emt
00:00:18]} Be6 {[%clk 00:02:03]} {[%emt 00:00:01]} 31. Ne4 {[%clk 00:03:39]}
{[%emt 00:00:07]} Bc4+ {[%clk 00:02:01]} {[%emt 00:00:07]} 32. Ke1 {[%clk
00:03:31]} {[%emt 00:00:13]} Rxg2 {[%clk 00:02:05]} {[%emt 00:00:02]} 33. h4
{[%clk 00:02:44]} {[%emt 00:00:52]} Re2+ {[%clk 00:02:07]} {[%emt 00:00:02]} 34.
Kf1 {[%clk 00:02:45]} {[%emt 00:00:05]} Rxe4+ {[%clk 00:02:11]} 0-1

[Event "MČR v rapid šachu družstev 2019"]
[Site "Teplice, Czech Republic"]
[Date "2019.09.15"]
[Round "8.21"]
[White "Trepka, Jan"]
[Black "Docekal, Jan"]
[Result "0-1"]
[TimeControl "15 min. + 5s"]
[WhiteElo "2209"]
[BlackElo "2302"]

1. d4 {[%clk 00:15:08]} {[%emt 00:00:01]} c5 {[%clk 00:15:09]} {[%emt
00:00:01]} 2. Nf3 {[%clk 00:15:09]} {[%emt 00:00:04]} cxd4 3. Nxd4 {[%clk
00:15:12]} Nc6 {[%clk 00:15:17]} 4. c4 {[%clk 00:15:13]} {[%emt 00:00:05]} Nf6
{[%clk 00:15:05]} {[%emt 00:00:17]} 5. Nc3 {[%clk 00:15:16]} {[%emt 00:00:03]}
g6 {[%clk 00:15:08]} {[%emt 00:00:01]} 6. e4 {[%clk 00:15:17]} {[%emt
00:00:04]} d6 {[%clk 00:15:10]} {[%emt 00:00:03]} 7. Be2 {[%clk 00:15:17]}
{[%emt 00:00:05]} Bg7 {[%clk 00:15:14]} {[%emt 00:00:01]} 8. Be3 {[%clk
00:15:18]} {[%emt 00:00:04]} O-O {[%clk 00:15:16]} {[%emt 00:00:03]} 9. f3
{[%clk 00:15:18]} {[%emt 00:00:05]} Bd7 {[%clk 00:15:20]} {[%emt 00:00:02]} 10.
O-O {[%clk 00:15:18]} {[%emt 00:00:04]} Nxd4 {[%clk 00:15:20]} {[%emt
00:00:06]} 11. Bxd4 {[%clk 00:15:21]} {[%emt 00:00:01]} Bc6 {[%clk 00:15:24]}
12. Qd2 {[%clk 00:15:03]} {[%emt 00:00:23]} a5 {[%clk 00:15:28]} {[%emt
00:00:01]} 13. Rac1 {[%clk 00:14:45]} {[%emt 00:00:24]} a4 {[%clk 00:15:22]}
{[%emt 00:00:11]} 14. Rfd1 {[%clk 00:13:47]} {[%emt 00:01:03]} Qa5 {[%clk
00:14:42]} {[%emt 00:00:45]} 15. Nd5 {[%clk 00:13:01]} {[%emt 00:00:51]} Bxd5
{[%clk 00:13:07]} {[%emt 00:01:40]} 16. cxd5 {[%clk 00:12:28]} {[%emt
00:00:38]} Qxd2 {[%clk 00:13:05]} {[%emt 00:00:06]} 17. Rxd2 {[%clk 00:12:31]}
{[%emt 00:00:01]} Bh6 {[%clk 00:13:08]} {[%emt 00:00:03]} 18. Rcc2 {[%clk
00:11:44]} {[%emt 00:00:52]} Bxd2 {[%clk 00:13:11]} {[%emt 00:00:03]} 19. Rxd2
{[%clk 00:11:47]} {[%emt 00:00:01]} Rfc8 {[%clk 00:13:10]} {[%emt 00:00:06]} 20.
Bxf6 {[%clk 00:11:37]} {[%emt 00:00:15]} exf6 {[%clk 00:12:48]} {[%emt
00:00:27]} 21. Kf2 {[%clk 00:11:23]} {[%emt 00:00:19]} Ra5 {[%clk 00:12:07]}
{[%emt 00:00:46]} 22. Ke3 {[%clk 00:11:03]} {[%emt 00:00:25]} Kf8 {[%clk
00:11:46]} {[%emt 00:00:26]} 23. Kd4 {[%clk 00:08:57]} {[%emt 00:02:11]} Rc1
{[%clk 00:11:38]} {[%emt 00:00:13]} 24. Bc4 {[%clk 00:07:48]} {[%emt 00:01:15]}
Rc5 {[%clk 00:10:54]} {[%emt 00:00:48]} 25. b3 {[%clk 00:07:28]} {[%emt
00:00:25]} Ke7 {[%clk 00:10:39]} {[%emt 00:00:20]} 26. Bd3 {[%clk 00:07:09]}
{[%emt 00:00:24]} a3 {[%clk 00:10:15]} {[%emt 00:00:29]} 27. h3 {[%clk
00:06:34]} {[%emt 00:00:39]} h5 {[%clk 00:09:52]} {[%emt 00:00:29]} 28. Ke3
{[%clk 00:06:26]} {[%emt 00:00:13]} Kd8 {[%clk 00:09:31]} {[%emt 00:00:27]} 29.
Kd4 {[%clk 00:04:57]} {[%emt 00:01:34]} Kc7 {[%clk 00:08:50]} {[%emt 00:00:46]}
30. Ke3 {[%clk 00:04:49]} {[%emt 00:00:12]} Kb6 {[%clk 00:08:51]} {[%emt
00:00:04]} 31. Kd4 {[%clk 00:04:53]} {[%emt 00:00:01]} Ka5 {[%clk 00:08:49]}
{[%emt 00:00:07]} 32. Bc4 {[%clk 00:04:24]} {[%emt 00:00:34]} Kb4 {[%clk
00:08:40]} {[%emt 00:00:15]} 33. Bd3 {[%clk 00:04:19]} {[%emt 00:00:09]} Re1
{[%clk 00:07:48]} {[%emt 00:00:57]} 34. Bc2 {[%clk 00:03:39]} {[%emt 00:00:45]}
Rc1 {[%clk 00:06:16]} {[%emt 00:01:37]} 35. Bd3 {[%clk 00:03:42]} {[%emt
00:00:02]} Ra1 {[%clk 00:06:20]} {[%emt 00:00:02]} 36. Bc4 {[%clk 00:03:39]}
{[%emt 00:00:08]} Rb1 {[%clk 00:06:13]} {[%emt 00:00:12]} 0-1

[Event "MČR v rapid šachu družstev 2019"]
[Site "Teplice, Czech Republic"]
[Date "2019.09.15"]
[Round "8.22"]
[White "Serrano, Salvador Eduardo"]
[Black "Ruzicka, Ales"]
[Result "1/2-1/2"]
[TimeControl "15 min. + 5s"]
[WhiteElo "2350"]
[BlackElo "2119"]

1. d4 {[%clk 00:15:07]} {[%emt 00:00:02]} Nf6 {[%clk 00:15:07]} {[%emt
00:00:03]} 2. Nf3 {[%clk 00:15:10]} {[%emt 00:00:02]} g6 {[%clk 00:15:10]}
{[%emt 00:00:02]} 3. c4 {[%clk 00:15:12]} {[%emt 00:00:03]} Bg7 {[%clk
00:15:08]} {[%emt 00:00:07]} 4. g3 {[%clk 00:15:16]} {[%emt 00:00:02]} O-O
{[%clk 00:14:57]} {[%emt 00:00:16]} 5. Bg2 {[%clk 00:15:19]} {[%emt 00:00:02]}
d6 {[%clk 00:14:43]} {[%emt 00:00:19]} 6. Nc3 {[%clk 00:15:20]} {[%emt
00:00:03]} Nbd7 {[%clk 00:14:43]} {[%emt 00:00:05]} 7. O-O {[%clk 00:15:23]}
{[%emt 00:00:02]} Re8 {[%clk 00:14:23]} {[%emt 00:00:25]} 8. h3 {[%clk
00:15:22]} {[%emt 00:00:07]} e5 {[%clk 00:14:22]} {[%emt 00:00:05]} 9. e4
{[%clk 00:15:26]} {[%emt 00:00:02]} exd4 {[%clk 00:14:06]} {[%emt 00:00:21]} 10.
Nxd4 {[%clk 00:15:29]} {[%emt 00:00:02]} a5 {[%clk 00:13:35]} {[%emt 00:00:35]}
11. Re1 {[%clk 00:15:30]} {[%emt 00:00:04]} Nc5 {[%clk 00:13:32]} {[%emt
00:00:08]} 12. Qc2 {[%clk 00:15:32]} {[%emt 00:00:03]} Ne6 {[%clk 00:13:14]}
{[%emt 00:00:23]} 13. Be3 {[%clk 00:15:32]} {[%emt 00:00:05]} Nxd4 {[%clk
00:13:00]} {[%emt 00:00:19]} 14. Bxd4 {[%clk 00:15:35]} {[%emt 00:00:02]} Nd7
{[%clk 00:13:00]} {[%emt 00:00:05]} 15. Bxg7 {[%clk 00:15:33]} {[%emt
00:00:08]} Kxg7 {[%clk 00:12:58]} {[%emt 00:00:07]} 16. Rad1 {[%clk 00:15:34]}
{[%emt 00:00:03]} Ne5 {[%clk 00:12:01]} {[%emt 00:01:02]} 17. b3 {[%clk
00:15:16]} {[%emt 00:00:24]} Be6 {[%clk 00:11:49]} {[%emt 00:00:16]} 18. f4
{[%clk 00:15:14]} {[%emt 00:00:07]} Nc6 {[%clk 00:11:14]} {[%emt 00:00:40]} 19.
f5 {[%clk 00:14:51]} {[%emt 00:00:29]} Bd7 {[%clk 00:10:44]} {[%emt 00:00:35]}
20. Nd5 {[%clk 00:14:52]} {[%emt 00:00:04]} Nb4 {[%clk 00:09:54]} {[%emt
00:00:55]} 21. Qb2+ {[%clk 00:14:11]} {[%emt 00:00:46]} f6 {[%clk 00:09:45]}
{[%emt 00:00:13]} 22. fxg6 {[%clk 00:13:59]} {[%emt 00:00:18]} Nxd5 {[%clk
00:09:36]} {[%emt 00:00:14]} 23. exd5 {[%clk 00:13:27]} {[%emt 00:00:37]} hxg6
{[%clk 00:09:13]} {[%emt 00:00:28]} 24. Rxe8 {[%clk 00:13:04]} {[%emt
00:00:27]} Qxe8 {[%clk 00:09:05]} {[%emt 00:00:13]} 25. Qd2 {[%clk 00:13:06]}
{[%emt 00:00:04]} b6 {[%clk 00:07:55]} {[%emt 00:01:15]} 26. Re1 {[%clk
00:13:09]} {[%emt 00:00:02]} Qf7 {[%clk 00:07:55]} {[%emt 00:00:04]} 27. g4
{[%clk 00:11:27]} {[%emt 00:01:48]} Re8 {[%clk 00:07:44]} {[%emt 00:00:15]} 28.
a3 {[%clk 00:10:50]} {[%emt 00:00:42]} Rxe1+ {[%clk 00:07:43]} {[%emt
00:00:06]} 29. Qxe1 {[%clk 00:10:54]} {[%emt 00:00:01]} Qe8 {[%clk 00:07:47]}
{[%emt 00:00:01]} 30. Qxe8 {[%clk 00:10:14]} {[%emt 00:00:46]} Bxe8 {[%clk
00:07:49]} {[%emt 00:00:02]} 31. Kf2 {[%clk 00:10:11]} {[%emt 00:00:09]} Bd7
{[%clk 00:07:48]} {[%emt 00:00:06]} 32. Be4 {[%clk 00:10:13]} {[%emt 00:00:02]}
b5 {[%clk 00:05:52]} {[%emt 00:02:00]} 33. Bd3 {[%clk 00:09:51]} {[%emt
00:00:28]} bxc4 {[%clk 00:05:51]} {[%emt 00:00:07]} 34. bxc4 {[%clk 00:09:01]}
{[%emt 00:00:55]} c6 {[%clk 00:05:40]} {[%emt 00:00:15]} 35. dxc6 {[%clk
00:07:43]} {[%emt 00:01:23]} Bxc6 {[%clk 00:05:43]} {[%emt 00:00:02]} 36. h4
{[%clk 00:07:47]} {[%emt 00:00:01]} Kh6 {[%clk 00:04:55]} {[%emt 00:00:53]} 37.
Ke3 {[%clk 00:07:42]} {[%emt 00:00:11]} f5 {[%clk 00:03:47]} {[%emt 00:01:12]}
38. gxf5 {[%clk 00:07:32]} {[%emt 00:00:15]} gxf5 {[%clk 00:03:51]} {[%emt
00:00:02]} 39. Be2 {[%clk 00:07:25]} {[%emt 00:00:12]} Kg6 {[%clk 00:02:29]}
{[%emt 00:01:27]} 40. Kf4 {[%clk 00:07:27]} {[%emt 00:00:02]} Kf6 {[%clk
00:02:31]} {[%emt 00:00:03]} 41. Bd3 {[%clk 00:07:20]} {[%emt 00:00:13]} Bd7
{[%clk 00:02:34]} {[%emt 00:00:02]} 42. h5 {[%clk 00:07:04]} {[%emt 00:00:20]}
Be8 {[%clk 00:02:24]} {[%emt 00:00:15]} 43. h6 {[%clk 00:06:48]} {[%emt
00:00:21]} Kg6 {[%clk 00:02:06]} {[%emt 00:00:23]} 44. Bf1 {[%clk 00:05:27]}
{[%emt 00:01:27]} Bf7 {[%clk 00:01:36]} {[%emt 00:00:35]} 45. h7 {[%clk
00:05:20]} {[%emt 00:00:11]} Kxh7 {[%clk 00:01:39]} {[%emt 00:00:03]} 46. Kxf5
{[%clk 00:05:23]} {[%emt 00:00:01]} Kg7 {[%clk 00:01:42]} {[%emt 00:00:02]} 47.
Be2 {[%clk 00:05:17]} {[%emt 00:00:11]} Bg8 {[%clk 00:01:43]} {[%emt 00:00:04]}
48. Ke4 {[%clk 00:04:16]} {[%emt 00:01:06]} Kf6 {[%clk 00:01:47]} {[%emt
00:00:02]} 49. Kd4 {[%clk 00:04:20]} {[%emt 00:00:01]} Ke7 {[%clk 00:01:40]}
{[%emt 00:00:12]} 50. Bf3 {[%clk 00:04:06]} {[%emt 00:00:18]} Kd7 {[%clk
00:01:37]} {[%emt 00:00:08]} 51. Bd5 {[%clk 00:03:35]} {[%emt 00:00:37]} Bh7
{[%clk 00:01:39]} {[%emt 00:00:02]} 52. c5 {[%clk 00:03:37]} {[%emt 00:00:03]}
dxc5+ {[%clk 00:01:38]} {[%emt 00:00:07]} 53. Kxc5 {[%clk 00:03:41]} {[%emt
00:00:01]} Kc7 {[%clk 00:01:25]} {[%emt 00:00:17]} 54. Kb5 {[%clk 00:03:43]}
{[%emt 00:00:03]} Kb8 {[%clk 00:01:27]} {[%emt 00:00:03]} 55. Kxa5 {[%clk
00:03:46]} {[%emt 00:00:03]} Ka7 {[%clk 00:01:26]} {[%emt 00:00:06]} 1/2-1/2

[Event "MČR v rapid šachu družstev 2019"]
[Site "Teplice, Czech Republic"]
[Date "2019.09.15"]
[Round "8.23"]
[White "Meszaros, Ludek"]
[Black "Filipi, Stepan"]
[Result "1-0"]
[TimeControl "15 min. + 5s"]
[WhiteElo "2059"]
[BlackElo "2210"]

1. e4 {[%clk 00:15:08]} {[%emt 00:00:01]} c5 {[%clk 00:15:09]} {[%emt
00:00:01]} 2. Nf3 {[%clk 00:15:11]} {[%emt 00:00:02]} e6 {[%clk 00:15:13]}
{[%emt 00:00:01]} 3. d3 {[%clk 00:15:15]} Nc6 {[%clk 00:15:11]} {[%emt
00:00:08]} 4. g3 {[%clk 00:15:18]} {[%emt 00:00:02]} d6 {[%clk 00:14:56]}
{[%emt 00:00:20]} 5. Bg2 {[%clk 00:15:20]} {[%emt 00:00:03]} g6 {[%clk
00:14:59]} {[%emt 00:00:03]} 6. h4 {[%clk 00:15:21]} {[%emt 00:00:04]} h5
{[%clk 00:14:46]} {[%emt 00:00:17]} 7. O-O {[%clk 00:15:18]} {[%emt 00:00:08]}
Bg7 {[%clk 00:14:41]} {[%emt 00:00:10]} 8. c3 {[%clk 00:15:19]} {[%emt
00:00:04]} Nf6 {[%clk 00:14:40]} {[%emt 00:00:06]} 9. Re1 {[%clk 00:15:15]}
{[%emt 00:00:10]} Qc7 {[%clk 00:14:37]} {[%emt 00:00:08]} 10. d4 {[%clk
00:15:16]} {[%emt 00:00:04]} e5 {[%clk 00:14:28]} {[%emt 00:00:14]} 11. b4
{[%clk 00:14:20]} {[%emt 00:01:00]} cxd4 {[%clk 00:13:36]} {[%emt 00:00:57]} 12.
b5 {[%clk 00:14:20]} {[%emt 00:00:06]} Ne7 {[%clk 00:12:43]} {[%emt 00:00:58]}
13. cxd4 {[%clk 00:14:20]} {[%emt 00:00:05]} Bd7 {[%clk 00:12:30]} {[%emt
00:00:18]} 14. a4 {[%clk 00:14:13]} {[%emt 00:00:11]} Rc8 {[%clk 00:12:09]}
{[%emt 00:00:27]} 15. dxe5 {[%clk 00:14:01]} {[%emt 00:00:16]} dxe5 {[%clk
00:12:01]} {[%emt 00:00:13]} 16. Ba3 {[%clk 00:14:04]} {[%emt 00:00:02]} Ng4
{[%clk 00:09:00]} {[%emt 00:03:06]} 17. Nbd2 {[%clk 00:13:00]} {[%emt
00:01:10]} Qb6 {[%clk 00:07:21]} {[%emt 00:01:44]} 18. Qe2 {[%clk 00:12:24]}
{[%emt 00:00:39]} Bf6 {[%clk 00:06:37]} {[%emt 00:00:50]} 19. Nh2 {[%clk
00:11:37]} {[%emt 00:00:53]} O-O {[%clk 00:05:50]} {[%emt 00:00:52]} 20. Nxg4
{[%clk 00:11:11]} {[%emt 00:00:31]} Bxg4 {[%clk 00:05:53]} {[%emt 00:00:02]} 21.
Bf3 {[%clk 00:11:01]} {[%emt 00:00:14]} Be6 {[%clk 00:05:18]} {[%emt 00:00:41]}
22. Rac1 {[%clk 00:10:37]} {[%emt 00:00:29]} Qd4 {[%clk 00:04:38]} {[%emt
00:00:45]} 23. a5 {[%clk 00:07:49]} {[%emt 00:02:53]} Rxc1 {[%clk 00:03:29]}
{[%emt 00:01:13]} 24. Rxc1 {[%clk 00:07:53]} {[%emt 00:00:02]} Rc8 {[%clk
00:03:31]} {[%emt 00:00:03]} 25. Rxc8+ {[%clk 00:07:06]} {[%emt 00:00:51]} Nxc8
{[%clk 00:03:35]} {[%emt 00:00:01]} 26. Kg2 {[%clk 00:06:16]} {[%emt 00:00:55]}
Qc3 {[%clk 00:03:28]} {[%emt 00:00:13]} 27. Qe3 {[%clk 00:04:56]} {[%emt
00:01:24]} Qxa5 {[%clk 00:03:30]} {[%emt 00:00:04]} 28. Be2 {[%clk 00:04:44]}
{[%emt 00:00:16]} Qa4 {[%clk 00:02:42]} {[%emt 00:00:54]} 29. Qc3 {[%clk
00:04:05]} {[%emt 00:00:43]} a6 {[%clk 00:01:27]} {[%emt 00:01:21]} 30. bxa6
bxa6 {[%clk 00:01:31]} 31. Bc5 {[%clk 00:03:05]} {[%emt 00:01:04]} Ne7 {[%clk
00:00:50]} {[%emt 00:00:47]} 32. Bxe7 {[%clk 00:02:46]} {[%emt 00:00:23]} Bxe7
{[%clk 00:00:54]} {[%emt 00:00:02]} 33. Qxe5 {[%clk 00:02:41]} {[%emt
00:00:09]} Qc2 {[%clk 00:00:49]} {[%emt 00:00:11]} 34. Qd4 {[%clk 00:02:30]}
{[%emt 00:00:14]} Bc5 {[%clk 00:00:40]} {[%emt 00:00:15]} 35. Qd8+ {[%clk
00:02:26]} {[%emt 00:00:10]} Kg7 {[%clk 00:00:43]} {[%emt 00:00:02]} 36. Bxa6
{[%clk 00:02:21]} {[%emt 00:00:10]} Bb4 {[%clk 00:00:41]} {[%emt 00:00:07]} 37.
Qd4+ {[%clk 00:02:24]} {[%emt 00:00:01]} Kh7 {[%clk 00:00:44]} {[%emt
00:00:03]} 38. Qxb4 {[%clk 00:02:26]} {[%emt 00:00:02]} Qd1 {[%clk 00:00:42]}
{[%emt 00:00:08]} 39. Qd4 {[%clk 00:02:22]} {[%emt 00:00:07]} Bh3+ {[%clk
00:00:43]} {[%emt 00:00:05]} 40. Kh2 {[%clk 00:02:21]} {[%emt 00:00:06]} Bg4
{[%clk 00:00:35]} {[%emt 00:00:15]} 41. Bf1 {[%clk 00:02:13]} {[%emt 00:00:12]}
Be2 {[%clk 00:00:27]} {[%emt 00:00:13]} 42. Bxe2 {[%clk 00:02:09]} {[%emt
00:00:08]} Qxe2 {[%clk 00:00:31]} {[%emt 00:00:02]} 43. Qe3 {[%clk 00:02:13]}
Qd1 {[%clk 00:00:33]} {[%emt 00:00:03]} 44. e5 {[%clk 00:02:15]} {[%emt
00:00:03]} Kg7 {[%clk 00:00:36]} {[%emt 00:00:02]} 45. Nf3 {[%clk 00:02:14]}
{[%emt 00:00:05]} Qd5 {[%clk 00:00:39]} {[%emt 00:00:03]} 46. Ng5 {[%clk
00:02:14]} {[%emt 00:00:04]} Qb7 {[%clk 00:00:40]} {[%emt 00:00:05]} 47. e6
{[%clk 00:02:13]} {[%emt 00:00:05]} f6 {[%clk 00:00:44]} {[%emt 00:00:02]} 48.
e7 {[%clk 00:02:16]} {[%emt 00:00:01]} 1-0